Cogmind - Beta 15 @@@ ROGUE MODE // 2025.08.13 @ 00:21:28 Player: P9H Result: Destroyed by S-27 Virus with Autogun Performance ------------- Evolutions (4) 2000 Regions Visited (8) 1600 Robots Destroyed (97) 485 Value Destroyed (2703) 2703 Prototype IDs (23) 460 Alien Tech Used (0) 0 Bonus (300) 300 TOTAL SCORE: 7548 Bonus ------- Aligned with FarCom 300 Cogmind --------- Core Integrity 0/850 Matter 6/300 Energy 98/100 System Corruption 39% Temperature Cool (0) Movement Core (50) Location -6/Factory Parts ------- > --- POWER (2) -------- (None) > --- PROPULSION (2) --- (None) > --- UTILITY (7) ------ (None) > --- WEAPON (4) ------- (None) > --- INVENTORY (5) ---- Light Nuclear Core Micro Nuclear Core Improved Signal Interpreter Tractor Beam Peak State ------------ > --- POWER ------------ Nuclear Core Light Nuclear Core > --- PROPULSION ------- Improved Treads Armored Treads > --- UTILITY ---------- Huge Storage Unit Improved Targeting Computer Reactive Plating Graphene Brace Hacking Suite Tractor Beam Trap Reconfigurator > --- WEAPON ----------- Minigun Minigun Minigun Gauss Rifle > --- INVENTORY -------- Light Nuclear Core Light Nuclear Core Light Nuclear Core Micro Nuclear Core Improved Treads Improved Treads Improved Treads Armored Treads Surge Thruster Improved Signal Interpreter Tractor Beam Shock Rifle Heavy Particle Cannon Minigun High-powered Shotgun Flak Gun Grenade Launcher Mini Grenade Launcher Mini Grenade Launcher Missile Launcher Blade Saw [Rating: 55] Favorites ----------- Power Ion Engine Engine Ion Engine Power Core Light Nuclear Core Propulsion Wheel Treads Improved Treads Wheel Wheel Flight Unit Surge Thruster Utility Hacking Suite Device Trap Reconfigurator Storage Huge Storage Unit Processor Improved Targeting Computer Hackware Hacking Suite Protection Medium Armor Plating Weapon Light Cannon Energy Gun EM Shotgun Ballistic Gun Minigun Ballistic Cannon Light Cannon Launcher Mini Grenade Launcher Impact Weapon Flail Slashing Weapon Blade Saw Build | -11 -10 -9 -9 -9 -8 -8 -7 -6 ------- Run | Yrd Mat Mat Min Exi Min Mat Fac Fac Slots Evolved 8 | . . 2 . . . 2 2 2 Power 1 | . . . . . . . . 1 Propulsion . | . . . . . . . . . Utility 5 | . . 1 . . . 1 2 1 Weapon 2 | . . 1 . . . 1 . . Parts Attached 72 | 6 11 13 1 . . 13 17 11 Power 12 | 1 2 2 . . . 2 4 1 Engine 8 | 1 2 2 . . . 2 1 . Core 4 | . . . . . . . 3 1 Reactor . | . . . . . . . . . Propulsion 16 | 2 2 4 . . . 2 4 2 Treads 7 | . 2 . . . . . 4 1 Leg . | . . . . . . . . . Wheel 8 | 2 . 4 . . . 2 . . Hover . | . . . . . . . . . Flight 1 | . . . . . . . . 1 Utility 14 | 1 2 3 1 . . 2 4 1 Device 5 | . . 1 . . . . 3 1 Storage 3 | 1 1 . 1 . . . . . Processor 2 | . 1 . . . . 1 . . Hackware 2 | . . 1 . . . 1 . . Protection 2 | . . 1 . . . . 1 . Artifact . | . . . . . . . . . Weapon 30 | 2 5 4 . . . 7 5 7 Energy Gun 2 | . 1 . . . . . 1 . Energy Cannon . | . . . . . . . . . Ballistic Gun 16 | 2 2 2 . . . 3 4 3 Ballistic Cannon 6 | . 2 1 . . . 3 . . Launcher 4 | . . . . . . 1 . 3 Special Weapon . | . . . . . . . . . Impact Weapon 1 | . . 1 . . . . . . Slashing Weapon 1 | . . . . . . . . 1 Piercing Weapon . | . . . . . . . . . Special Melee Weapon . | . . . . . . . . . Unidentified Prototypes . | . . . . . . . . . Parts Lost 51 | . 4 9 . . . 5 9 24 Power 7 | . 1 2 . . . 1 1 2 Propulsion 13 | . 2 4 . . . 1 2 4 Utility 11 | . . 1 . . . 1 3 6 Weapon 20 | . 1 2 . . . 2 3 12 Highest Loss Streak 21 | . 3 4 . . . 2 3 21 To Critical Strikes 1 | . . . . . . . 1 . Average Backups 19 | 2 8 14 18 19 23 24 24 18 Power 5 | . 2 4 5 6 6 7 4 3 Propulsion 3 | 1 2 1 2 3 3 3 5 4 Utility 3 | . . 3 3 4 5 5 3 2 Weapon 7 | . 2 5 6 6 8 8 10 8 Tool/Special . | . . . . . . . . . Unused Backups 33 | . 2 . . . . 10 10 11 Power 11 | . 1 . . . . 3 3 4 Propulsion 10 | . 1 . . . . 2 4 3 Utility 4 | . . . . . . 1 1 2 Weapon 8 | . . . . . . 4 2 2 Tool/Special . | . . . . . . . . . Average Slot Usage (%) 95 | . 95 90 100 100 100 97 98 77 Engine 7 | . 13 10 11 11 11 8 2 . Core 1 | . . . . . . . 3 10 Treads 8 | . 23 3 . . . . 13 10 Wheel 9 | . 3 16 22 22 22 17 1 . Device 6 | . . 2 . . . . 17 14 Storage 9 | . 14 11 11 11 11 9 7 5 Processor 6 | . 11 4 . . . 8 7 4 Hackware 9 | . . 7 11 11 11 15 11 4 Protection 2 | . . 2 11 11 11 1 . 3 Energy Gun 1 | . . . . . . . 5 . Ballistic Gun 13 | . 16 6 11 11 11 6 18 20 Ballistic Cannon 11 | . 11 15 11 11 11 24 4 . Impact Weapon 4 | . . 10 11 11 11 5 . . Peak Build Rating 55 | 6 9 15 16 17 18 29 49 55 Average Rating 24 | 3 7 12 15 16 17 20 42 43 On Entrance 17 | . 6 9 15 16 17 18 29 49 Naked Turns 44 | . . . . . . . . 44 Heaviest Build 118 | 11 31 38 98 98 98 100 111 118 Greatest Support 46 | 20 40 40 20 20 20 26 46 43 Greatest Overweight (x) 33 | . 2 7 4 4 4 9 33 4 Average Overweight (x) 2 | . . 1 3 4 4 3 2 . Largest Inventory Capacity 25 | 8 15 15 25 25 25 25 25 25 Average Capacity 20 | 6 9 14 24 25 25 25 25 22 Most Carried 25 | 5 15 15 19 20 25 25 25 23 Average Carried 19 | 3 8 14 18 19 23 24 24 18 Final Capacity 25 | 8 15 15 25 25 25 25 25 5 Final Carried 25 | 4 15 15 19 20 25 25 24 4 Class Distribution -------------------- 47% | Mutant 29% | Hacker-Skirmisher 8% | Gunner 5% | Scavenger-Skirmisher 5% | Scavenger-Tank Dominant Class ---------------- Mutant | -10/Materials Mutant | -9/Materials Mutant | -9/Mines Mutant | -9/Exiles Mutant | -8/Mines Hacker-Skirmisher | -8/Materials Hacker-Skirmisher | -7/Factory Scavenger-Tank | -6/Factory Resources | -11 -10 -9 -9 -9 -8 -8 -7 -6 ----------- Run | Yrd Mat Mat Min Exi Min Mat Fac Fac Matter Collected 2587 | 215 411 578 10 . 40 574 577 182 Remotely 93 | . . . . . . . . 93 Salvage Created 2916 | . 534 749 . . 47 514 906 166 Parts 194 | . 44 53 . . 4 32 53 8 Haulers Intercepted 1 | . . 1 . . . . . . Recyclers Shooed 8 | . 1 3 . . . 1 3 . Parts Field Recycled . | . . . . . . . . . Retrieved Matter . | . . . . . . . . . Parts Self-Destructed . | . . . . . . . . . Prevented . | . . . . . . . . . Kills | -11 -10 -9 -9 -9 -8 -8 -7 -6 ------- Run | Yrd Mat Mat Min Exi Min Mat Fac Fac Combat Hostiles Destroyed 74 | . 16 20 . . 3 13 17 5 Melee 1 | . . . . . 1 . . . Guns 39 | . 14 4 . . 1 . 16 4 Cannons 30 | . 2 15 . . 1 11 1 . AOE 4 | . . 1 . . . 2 . 1 Classes Destroyed 16 | . 4 6 . . . 1 5 . Worker 4 | . 3 1 . . . . . . Builder 5 | . . 1 . . . 4 . . Tunneler 1 | . . 1 . . . . . . Hauler 1 | . . 1 . . . . . . Recycler 6 | . . 3 . . . 1 2 . Operator 2 | . 1 . . . . 1 . . Watcher 4 | . . 2 . . . 1 1 . Swarmer 29 | . 6 10 . . 3 3 4 3 Cutter 1 | . . . . . . . 1 . Grunt 27 | . 10 8 . . . 5 4 . Duelist 2 | . . . . . . 1 . 1 Sentry 7 | . . 2 . . . 4 1 . Specialist 1 | . . . . . . . 1 . Hunter 3 | . . . . . . . 2 1 Programmer 3 | . . . . . . . 3 . Heavy 1 | . . . . . . . 1 . Best Kill Streak 8 | . 3 6 . . 3 8 5 3 Combat Bots Only 6 | . 3 6 . . 3 5 4 3 Max Kills in Single Turn 2 | . 2 2 . . 1 2 1 1 Gunslinging . | . . . . . . . . . Exploded 2 | . . 1 . . . 2 . 1 Melee 1 | . . . . . 1 . . . Uniques/NPCs Destroyed . | . . . . . . . . . Combat | -11 -10 -9 -9 -9 -8 -8 -7 -6 -------- Run | Yrd Mat Mat Min Exi Min Mat Fac Fac Hostile Shots Fired 584 | . 94 106 . . 13 42 121 208 Missed 164 | . 27 28 . . 4 9 36 60 Hits 420 | . 67 78 . . 9 33 85 148 Melee 28 | . . . . . . . 1 27 Projectile 392 | . 67 78 . . 9 33 84 121 AOE 2 | . . . . . . . 2 . Critical Strikes 15 | . . 2 . . 2 1 6 4 Actively Blocked 3 | . . . . . . . . 3 Damage Taken 6566 | . 746 888 . . 69 576 1334 2953 Core 1349 | . 112 167 . . 6 81 118 865 Absorbed by Shields . | . . . . . . . . . Ignored by Resistances 165 | . . . . . . . 87 78 Core Remaining (%) 75 | 100 55 . . . 56 85 83 . Volleys Fired 224 | . 59 62 . . 5 36 43 19 Largest 4 | . 2 2 . . 2 4 4 4 Hottest 125 | . 70 60 . . 53 120 125 103 Shots Fired 597 | . 116 121 . . 10 133 165 52 Gun 368 | . 102 33 . . 5 33 144 51 Cannon 225 | . 14 88 . . 5 97 21 . Launcher 4 | . . . . . . 3 . 1 Special . | . . . . . . . . . Kinetic 562 | . 112 121 . . 10 130 138 51 Thermal 4 | . 4 . . . . . . . Explosive 4 | . . . . . . 3 . 1 Electromagnetic 27 | . . . . . . . 27 . Robot Hit Streak 15 | . 12 9 . . 6 15 8 5 Robot Miss Streak 7 | . 3 7 . . 4 3 5 5 Penetration Max . | . . . . . . . . . Secondary Targets 7 | . 4 . . . . . 1 2 Max Gunslinging Chain 1 | . 1 . . . . . 1 1 Shots Hit Robots 383 | . 84 73 . . 4 87 102 33 Core Hits 180 | . 35 33 . . 1 38 57 16 Critical Kills 1 | . . 1 . . . . . . Critical Parts Destroyed 1 | . . . . . 1 . . . Critical Strikes 10 | . . 4 . . 1 4 . 1 Blast 7 | . . 3 . . . 4 . . Smash 2 | . . 1 . . 1 . . . Sever 1 | . . . . . . . . 1 Melee Attacks 17 | . . 3 . . 1 10 . 3 Impact 14 | . . 3 . . 1 10 . . Slashing 3 | . . . . . . . . 3 Piercing . | . . . . . . . . . Sneak Attacks 2 | . . 1 . . 1 . . . Combat Hostiles 1 | . . . . . 1 . . . Follow-up Attacks . | . . . . . . . . . Damage Inflicted 6661 | . 913 1518 . . 120 1495 1826 789 Guns 3398 | . 763 296 . . 31 225 1604 479 Cannons 2284 | . 144 913 . . 17 1046 164 . Explosions 740 | . . 194 . . . 224 53 269 Melee 228 | . . 115 . . 72 . . 41 Ramming 11 | . 6 . . . . . 5 . Kinetic 5345 | . 857 1209 . . 48 1271 1481 479 Thermal 216 | . 50 . . . . . 53 113 Explosive 574 | . . 194 . . . 224 . 156 Electromagnetic 287 | . . . . . . . 287 . Impact 187 | . . 115 . . 72 . . . Slashing 41 | . . . . . . . . 41 Piercing . | . . . . . . . . . Highest Corruption 39 | . 1 . . . . . 2 39 Average Corruption 3 | . 1 . . . . . 1 29 Corruption Purged . | . . . . . . . . . Corruption Blocked . | . . . . . . . . . Effects 29 | . 10 . . . . . 6 13 Message Errors 5 | . 2 . . . . . . 3 Matter Fused 6 | . 4 . . . . . 1 1 Heat Flow Errors 3 | . . . . . . . 1 2 Energy Discharges 1 | . . . . . . . 1 . Data Loss (minor) 4 | . 2 . . . . . 2 . Data Loss (major) 2 | . 1 . . . . . . 1 Alerts 1 | . 1 . . . . . . . Misdirections 6 | . . . . . . . . 6 Weapon Failures 1 | . . . . . . . 1 . Overload Shots . | . . . . . . . . . Overflow Damage 313 | . . 192 . . 86 28 7 . Projectiles 40 | . . 2 . . 14 17 7 . Explosions 184 | . . 173 . . . 11 . . Melee 89 | . . 17 . . 72 . . . Knockbacks 23 | . . 2 . . . 18 3 . Impact . | . . . . . . . . . Kinetic 21 | . . 2 . . . 16 3 . Secondary 2 | . . . . . . 2 . . Self-Inflicted Damage 301 | . . 111 . . . 65 . 125 Shots 5 | . . 1 . . . 2 . 2 Rammed 4 | . 1 . . . . . 1 2 Targets Rammed 4 | . 1 . . . . . 1 2 Kicked . | . . . . . . . . . Crushed . | . . . . . . . . . Highest Temperature 366 | . 60 53 . . 24 214 366 258 Average Temperature 69 | . 14 13 . . 11 50 112 109 Received Heat Transfer 1464 | . 333 183 . . . 234 309 405 Effects 1 | . . . . . . . 1 . Energy Bleed 1 | . . . . . . . 1 . Siege Activations . | . . . . . . . . . Martial Activations . | . . . . . . . . . Shielding Activations . | . . . . . . . . . Robots Disrupted . | . . . . . . . . . Combat Hostiles . | . . . . . . . . . Robots Corrupted . | . . . . . . . . . Combat Hostiles . | . . . . . . . . . Parts Fried 1 | . . . . . 1 . . . Impact Corruptions 4 | . . 1 . . 3 . . . Robots Melted . | . . . . . . . . . Combat Hostiles . | . . . . . . . . . Parts Melted 1 | . 1 . . . . . . . Heat Transferred 248 | . 148 . . . . . 50 50 Parts Sabotaged . | . . . . . . . . . Parts Stolen . | . . . . . . . . . Parts Stripped . | . . . . . . . . . Power Chain Reactions 1 | . . . . . . . 1 . Alert | -11 -10 -9 -9 -9 -8 -8 -7 -6 ------- Run | Yrd Mat Mat Min Exi Min Mat Fac Fac Maximum Alert Level . | . . . . . . . . . Low Security (%) 100 | 100 100 100 100 . 100 100 100 100 Level 1 . | . . . . . . . . . Level 2 . | . . . . . . . . . Level 3 . | . . . . . . . . . Level 4 . | . . . . . . . . . Level 5 . | . . . . . . . . . High Security . | . . . . . . . . . Max Security . | . . . . . . . . . Peak Influence 174 | . 174 157 53 . 70 152 148 143 Initial 53 | . . 16 53 . . . 30 39 Average 55 | . 79 92 8 . 8 55 50 48 Influence Increases 2495 | . 490 592 . . 70 469 475 399 Destroy 0b10 Robot/C 1480 | . 320 400 . . 60 260 340 100 Destroy 0b10 Robot/NC 115 | . 20 45 . . . 35 15 . Destroy Leader 330 | . 70 76 . . 10 72 82 20 Trap Triggered on 0b10 20 | . . . . . . . 20 . Successful Hack 4 | . 4 . . . . . . . Disable Machine 195 | . . 60 . . . 45 15 75 Destroy Structure 66 | . 1 11 . . . 27 3 24 Lose Combat Pursuer 285 | . 75 . . . . 30 . 180 Influence Decreases 2356 | . 450 494 138 . 70 401 463 340 Entered New Map 188 | . . 24 85 . . . 38 41 Time Decay 1832 | . 440 380 53 . 70 351 335 203 Lost Part 336 | . 10 90 . . . 50 90 96 Squads Dispatched 20 | . 4 1 . . . 2 8 5 Investigation 4 | . 1 . . . . 1 1 1 Extermination 4 | . . . . . . . 3 1 Reinforcement 10 | . 3 1 . . . 1 4 1 Assault . | . . . . . . . . . Garrison 2 | . . . . . . . . 2 Intercept . | . . . . . . . . . Searches Triggered . | . . . . . . . . . Construction Impeded 2 | . . . . . . 1 1 . Haulers Reinforced . | . . . . . . . . . Active Scanning Responses . | . . . . . . . . . Cargo Convoy Interrupts . | . . . . . . . . . Stealth | -11 -10 -9 -9 -9 -8 -8 -7 -6 --------- Run | Yrd Mat Mat Min Exi Min Mat Fac Fac Distress Signals 7 | . 2 2 . . . 1 2 . Communications Jammed . | . . . . . . . . . Distress Signals . | . . . . . . . . . Times Spotted 127 | . 31 27 . . 2 18 26 23 Peak Tracking Total 7 | . 6 5 . . 2 6 5 7 Tactical Retreats 10 | . 4 . . . . 2 . 4 Traps | -11 -10 -9 -9 -9 -8 -8 -7 -6 ------- Run | Yrd Mat Mat Min Exi Min Mat Fac Fac Traps Triggered 8 | . 2 . . . . 2 2 2 Indirectly . | . . . . . . . . . Trap Hack Attempts . | . . . . . . . . . Triggered . | . . . . . . . . . Disarmed . | . . . . . . . . . Reprogrammed . | . . . . . . . . . Reused 2 | . . . . . . . 2 . Traps Reconfigurated 14 | . . . . . . . 10 4 Traps Extracted . | . . . . . . . . . Installed . | . . . . . . . . . Triggered 2 | . . . . . . . 2 . Machines | -11 -10 -9 -9 -9 -8 -8 -7 -6 ---------- Run | Yrd Mat Mat Min Exi Min Mat Fac Fac Machines Disabled 13 | . . 4 . . . 3 1 5 Max in Single Turn 4 | . . 4 . . . 1 1 3 Machines Repaired . | . . . . . . . . . Machines Dismantled . | . . . . . . . . . Machines Sabotaged . | . . . . . . . . . Overloaded Fab Kills . | . . . . . . . . . Hacking | -11 -10 -9 -9 -9 -8 -8 -7 -6 --------- Run | Yrd Mat Mat Min Exi Min Mat Fac Fac Machines Accessed 6 | . 2 1 . 1 . . 1 1 Terminals 4 | . 2 1 . . . . 1 . Fabricators . | . . . . . . . . . Repair Stations . | . . . . . . . . . Recycling Units . | . . . . . . . . . Scanalyzers 1 | . . . . . . . . 1 Garrison Access . | . . . . . . . . . Total Hacks 9 | . 3 2 . 1 . . 1 2 Successful 5 | . 1 1 . 1 . . . 2 Failed 4 | . 2 1 . . . . 1 . Catastrophic 3 | . 2 . . . . . 1 . Database Lockouts . | . . . . . . . . . Manual 6 | . 2 . . 3 . . 1 . Terminals 6 | . 3 2 . . . . 1 . Fabricators . | . . . . . . . . . Repair Stations . | . . . . . . . . . Recycling Units . | . . . . . . . . . Scanalyzers 2 | . . . . . . . . 2 Garrison Access . | . . . . . . . . . Terminal Hacks 3 | . 1 1 . 1 . . . . Branch Access Points 1 | . . 1 . . . . . . Locate Traps 1 | . 1 . . . . . . . Proto ID Catalog 1 | . . . . 1 . . . . Fabricator Hacks . | . . . . . . . . . Repair Station Hacks . | . . . . . . . . . Recycling Unit Hacks . | . . . . . . . . . Scanalyzer 2 | . . . . . . . . 2 Insert Component 1 | . . . . . . . . 1 Analyze 1 | . . . . . . . . 1 Garrison Access Hacks . | . . . . . . . . . Unauthorized Hacks . | . . . . . . . . . Terminals . | . . . . . . . . . Fabricators . | . . . . . . . . . Repair Stations . | . . . . . . . . . Recycling Units . | . . . . . . . . . Scanalyzers . | . . . . . . . . . Garrison Access . | . . . . . . . . . Data Cores Recovered 1 | . . . . . . 1 . . Used . | . . . . . . . . . Hacking Detections 4 | . 1 1 . . . . 1 1 Full Trace Events 1 | . 1 . . . . . . . Feedback Events 1 | . 1 . . . . . . . Corruption 1 | . 1 . . . . . . . Feedback Blocked . | . . . . . . . . . Robot Schematics Acquired . | . . . . . . . . . Robots Built . | . . . . . . . . . Authchips . | . . . . . . . . . Time . | . . . . . . . . . Total Robot Build Rating . | . . . . . . . . . Part Schematics Acquired 1 | . . . . . . . . 1 Parts Built . | . . . . . . . . . Authchips . | . . . . . . . . . Time . | . . . . . . . . . Total Part Build Rating . | . . . . . . . . . Parts Repaired . | . . . . . . . . . Time . | . . . . . . . . . Parts Recycled . | . . . . . . . . . Recycled Matter . | . . . . . . . . . Retrieved Matter . | . . . . . . . . . Retrieved Components . | . . . . . . . . . Parts Scanalyzed 1 | . . . . . . . . 1 Part Schematics Acquired 1 | . . . . . . . . 1 Parts Damaged . | . . . . . . . . . Bothacking | -11 -10 -9 -9 -9 -8 -8 -7 -6 ------------ Run | Yrd Mat Mat Min Exi Min Mat Fac Fac Used RIF Installer . | . . . . . . . . . Robots Hacked . | . . . . . . . . . Non-combat . | . . . . . . . . . Combat . | . . . . . . . . . Robot Hacks Applied . | . . . . . . . . . Relay Couplers Released . | . . . . . . . . . Fabnet Peak Effective % . | . . . . . . . . . Robots Rewired . | . . . . . . . . . Allies Hacked . | . . . . . . . . . Hacks Repelled . | . . . . . . . . . Allies | -11 -10 -9 -9 -9 -8 -8 -7 -6 -------- Run | Yrd Mat Mat Min Exi Min Mat Fac Fac Total Allies . | . . . . . . . . . Largest Group . | . . . . . . . . . Highest-Rated Group . | . . . . . . . . . Highest-Rated Ally . | . . . . . . . . . Total Orders . | . . . . . . . . . Ally Attacks . | . . . . . . . . . Total Damage . | . . . . . . . . . Kills . | . . . . . . . . . Allies Corrupted . | . . . . . . . . . Allies Melted . | . . . . . . . . . Intel | -11 -10 -9 -9 -9 -8 -8 -7 -6 ------- Run | Yrd Mat Mat Min Exi Min Mat Fac Fac Active Infowar (turns) 2266 | . . 223 . . . . 2043 . Structural 2266 | . . 223 . . . . 2043 . Robot Analysis Total . | . . . . . . . . . Derelict Logs Recovered . | . . . . . . . . . Drone Launches . | . . . . . . . . . Drone Recoveries . | . . . . . . . . . Exploration | -11 -10 -9 -9 -9 -8 -8 -7 -6 ------------- Run | Yrd Mat Mat Min Exi Min Mat Fac Fac Turns Passed 7749 | 57 1296 966 380 300 582 1424 2130 614 Spaces Moved 3692 | 56 714 678 277 214 387 605 481 280 Core 178 | 21 12 8 . . . . 4 133 Treads 1137 | . 582 65 . . . . 386 104 Legs . | . . . . . . . . . Wheels 2334 | 35 120 605 277 214 387 605 91 . Hover . | . . . . . . . . . Flight 43 | . . . . . . . . 43 Fastest Speed 32 | 50 80 80 95 140 140 135 135 32 Average Speed 155 | 68 146 107 134 140 140 138 299 151 Slowest Speed 1700 | 80 160 400 140 140 140 215 1700 480 Overloaded Moves 5 | . . . . . . . . 5 Propulsion Burnouts . | . . . . . . . . . Robots Hopped . | . . . . . . . . . Potential Cave-ins . | . . . . . . . . . Cave-ins Triggered . | . . . . . . . . . Exploration Rate (%) 43 | 3 89 48 51 61 91 31 11 10 Regions Visited 8 Branch Regions 3 Pre-discovered Areas . | . . . . . . . . . Known Exits Taken 1 | . . 1 . . . . . . Unknown Exits Taken 7 | 1 1 . 1 1 1 1 1 . Scrap Searched 2 | . . . 1 . 1 . . . Spaces Dug 8 | . . . . . . 8 . . Terrain Destroyed 76 | . . 17 . . . 29 2 28 Melee 8 | . . . . . . 8 . . Projectile . | . . . . . . . . . AOE 68 | . . 17 . . . 21 2 28 Terrain Rammed . | . . . . . . . . . Walls Destroyed . | . . . . . . . . . Machines Disabled . | . . . . . . . . . Actions | -11 -10 -9 -9 -9 -8 -8 -7 -6 --------- Run | Yrd Mat Mat Min Exi Min Mat Fac Fac Total 5264 | 74 863 792 285 214 417 1106 1095 418 Wait 1075 | 3 46 10 3 . 20 393 502 98 Move 3684 | 55 713 677 276 213 386 604 480 280 Hop . | . . . . . . . . . Pick Up 108 | 10 20 19 4 1 5 24 25 . Fast Attach 18 | . 6 4 . . . 2 6 . Attach 53 | 6 5 11 . . . 7 11 13 Detach . | . . . . . . . . . Swap 24 | . 4 2 1 . . 10 5 2 Drop 56 | . 9 4 1 . . 20 22 . Fire 224 | . 59 62 . . 5 36 43 19 Melee 17 | . . 3 . . 1 10 . 3 Ram 2 | . . . . . . . . 2 Kick . | . . . . . . . . . Crush 3 | . 1 . . . . . 1 1 Escape Stasis . | . . . . . . . . . Rewire . | . . . . . . . . . Trap . | . . . . . . . . . Miscellaneous . | . . . . . . . . . Route ------- -11/Scrapyard -10/Materials (discovered 4 exits: *Mat x2 / [*Min x2]) -9/Materials (discovered 2 exits: [*Mat] / *Min) -9/Mines (discovered 2 exits: [*Mat] / *Exi) -9/Exiles -8/Mines -8/Materials -7/Factory -6/Factory History --------- Turn | Location | Event 22 | -11/Scrapyard | Discovered new exit (range 16) 58 | -11/Scrapyard | Entered Materials 250 | -10/Materials | Lost 3 parts (1p2n) 307 | -10/Materials | Build established: Mutant 406 | -10/Materials | Discovered new exit (range 15) 537 | -10/Materials | Discovered new exit (range 11) 768 | -10/Materials | Discovered new exit (range 12) 1042 | -10/Materials | Discovered new exit (range 16) 1354 | -10/Materials | Entered another Materials area 1354 | -9/Materials | Evolved 2 slots: Utility x1, Weapon x1 1634 | -9/Materials | Identified exit to Mines 1792 | -9/Materials | Lost 4 parts (1p1n1u1w) 1901 | -9/Materials | Lost 3 parts (1p1n1w) 1902 | -9/Materials | Discovered new exit (range 7) 2320 | -9/Materials | Entered Mines 2346 | -9/Mines | Found DCF Scrap (11 items) 2459 | -9/Mines | Discovered new exit (range 7) 2511 | -9/Mines | Found a hidden stash of uninstalled traps 2691 | -9/Mines | Deemed a non-threat by the Exiles lab entrance 2693 | -9/Mines | Discovered new exit (range 5) 2700 | -9/Mines | Entered Exiles 2735 | -9/Exiles | Met 8R-AWN 2758 | -9/Exiles | Met EX-HEX 2797 | -9/Exiles | Met EX-BIN 2814 | -9/Exiles | Aligned with FarCom system 2815 | -9/Exiles | Given EX-Vault access code 2853 | -9/Exiles | Opened EX-Vault 2867 | -9/Exiles | Found Trap Reconfigurator 2899 | -9/Exiles | Warned to stay clear of 0b10 Research branches 2937 | -9/Exiles | Met EX-DEC 2988 | -9/Exiles | Discovered new exit (range 10) 3000 | -9/Exiles | Left Exiles lab with Trap Reconfigurator 3000 | -9/Exiles | Entered Mines 3563 | -8/Mines | Discovered new exit (range 3) 3582 | -8/Mines | Entered Materials 3582 | -8/Materials | Evolved 2 slots: Utility x1, Weapon x1 3933 | -8/Materials | Build established: Scavenger-Skirmisher 4259 | -8/Materials | Build established: Hacker-Skirmisher 4990 | -8/Materials | Discovered new exit (range 10) 5006 | -8/Materials | Entered Factory 5006 | -7/Factory | Evolved 2 slots: Utility x2 6570 | -7/Factory | Build established: Gunner 7050 | -7/Factory | Discovered new exit (range 13) 7100 | -7/Factory | Lost 3 parts (1p1n1u) 7136 | -7/Factory | Entered another Factory area 7136 | -6/Factory | Evolved 2 slots: Power x1, Utility x1 7444 | -6/Factory | Build established: Scavenger-Tank 7554 | -6/Factory | Garrison activated, responded to threat 7605 | -6/Factory | System corruption reached 10% 7650 | -6/Factory | System corruption reached 30% 7667 | -6/Factory | Core integrity fell below 50% 7667 | -6/Factory | Released all parts (1) 7691 | -6/Factory | Core integrity fell below 20% 7692 | -6/Factory | Lost 21 parts (2p3n4u12w) 7750 | -6/Factory | Destroyed by S-27 Virus with Autogun Last Messages --------------- 07667_ U-05 Engineer lays Concrete. 07670_ S-27 Virus destroyed. 07670_ U-05 Engineer lays Concrete. 07671_ K-01 Serf collects debris. 07672_ U-05 Engineer lays Concrete. 07673_ System corrupted: Matter fused (-8). 07673_ U-05 Engineer lays Concrete. 07688_ 5,Y>JDMJFW=BBK,S>#IYHGW 07716_ Surge Thruster destroyed. 07723_ ALERT: Potential suspicious activity detected, Programmers report to Factory Zone 3H. 07727_ Triggered EM Surge Trap. 07727_ The floor emits a surge of raw power. 07727_ System corrupted (+5). 07734_ K-01 Serf cleans the Power Conduit. 07739_ B6NTFV%